bitfinex/quotes_ETHUSD_20250904
["timestamp","ask_amount","ask_price","bid_price","bid_amount"]
[1757012410050,6.55487559,4282.7,4282.6,0.004]
[1757012410273,7.56537559,4282.7,4282.6,0.004]
[1757012413580,7.88366549,4282.7,4282.6,0.004]
[1757012415157,5.5486899,4282.7,4281.6,0.003]
[1757012415352,0.1168,4281.7,4281.6,0.003]
[1757012415555,11.47161083,4281.7,4281.6,0.003]
[1757012415859,11.78271083,4281.7,4281.6,0.003]
[1757012417361,7.80271083,4281.7,4281.6,0.003]
[1757012417562,11.46442093,4281.7,4281.6,0.003]
[1757012418179,7.48442093,4281.7,4281.6,0.003]
[1757012418362,11.46442093,4281.7,4281.6,0.003]
[1757012419690,11.46442093,4281.7,4281.6,0.007]
[1757012420763,11.46542093,4281.7,4281.6,0.007]
[1757012422299,7.17332093,4281.7,4281.6,0.007]
[1757012422466,1.722,4281.7,4281.6,1.3649]
[1757012422666,5.702,4281.7,4281.6,1.59534718]
[1757012423195,1.722,4281.7,4281.6,1.59534718]
[1757012423488,5.702,4281.7,4281.6,1.59534718]
[1757012423798,1.722,4281.7,4281.6,1.59534718]
[1757012424172,1.722,4281.7,4281.6,3.93092266]
[1757012424372,5.702,4281.7,4281.6,3.93092266]
[1757012424692,1.722,4281.7,4281.6,3.93092266]
[1757012424897,5.38,4283.2,4281.6,1.59534718]
[1757012425062,1.722,4282.7,4282.5,2.33508464]
[1757012425265,3.981,4282.6,4282.5,2.33508464]
[1757012425494,3.981,4282.6,4282.5,1.3579]
[1757012425659,3.981,4282.6,4282.5,2.06011678]
[1757012426289,3.981,4282.6,4282.5,4.39520142]
[1757012426461,0.001,4282.6,4282.5,2.06011678]
[1757012426663,3.981,4282.6,4282.5,2.06011678]
[1757012426896,3.981,4282.6,4282.5,4.8347332]
[1757012427196,0.001,4282.6,4282.5,4.39520142]
[1757012427376,3.981,4282.6,4282.5,4.39520142]
[1757012428604,3.981,4282.6,4282.5,1.59321678]
[1757012428803,3.981,4282.6,4282.5,1.48231678]
[1757012429101,3.981,4282.6,4282.5,1.01541678]
[1757012429887,3.981,4282.6,4282.5,2.06011678]
[1757012430201,3.981,4282.6,4282.5,4.39520142]
[1757012430596,0.001,4282.6,4282.5,5.06824072]
[1757012430781,0.001,4283.1,4283.0,2.33481204]
[1757012430983,3.98,4283.1,4283.0,2.33481204]
[1757012431306,3.98,4283.1,4283.0,3.69271204]
[1757012432284,3.93,4283.1,4283.0,3.69271204]
[1757012432603,0.1168,4283.1,4283.0,4.29547208]
[1757012432905,3.979,4283.1,4283.0,4.29547208]
[1757012433073,4.0958,4283.1,4283.0,4.29547208]
[1757012433801,4.0958,4283.1,4283.0,3.74547208]
[1757012434172,4.0958,4283.1,4283.0,2.09801204]
[1757012434377,4.0958,4283.1,4283.0,0.3132]
[1757012434598,4.0958,4283.1,4282.9,2.33484717]
[1757012434804,3.979,4283.1,4283.0,0.3132]
[1757012435201,3.979,4283.1,4283.0,3.69271204]
[1757012435406,4.0958,4283.1,4283.0,4.29546928]
[1757012435905,4.0958,4283.1,4283.0,4.99762361]
[1757012436377,0.1168,4283.1,4283.0,4.99762361]
[1757012436582,1.722,4283.4,4283.2,2.33470302]
[1757012436783,3.979,4283.3,4283.2,2.33470302]
[1757012436982,3.979,4283.3,4283.2,4.65931831]
[1757012437594,1.722,4283.4,4283.3,2.33464851]
[1757012437878,5.701,4283.4,4283.3,3.37934851]
[1757012438077,5.701,4283.4,4283.3,3.69254851]
[1757012438780,0.001,4283.7,4283.3,2.1499]
[1757012438986,3.02,4283.7,4283.6,0.1168]
[1757012439210,3.02,4283.7,4283.6,3.77048501]
[1757012439882,0.001,4283.7,4283.6,7.56248501]
[1757012440982,0.001,4283.7,4283.6,7.44568501]
[1757012441187,0.001,4283.7,4283.6,7.56248501]
[1757012441406,0.001,4283.7,4283.6,11.4415211]
[1757012441596,0.001,4283.7,4283.6,23.48796824]
[1757012441800,3.978,4284.7,4284.5,2.33399463]
[1757012442004,4.413592,4284.8,4284.5,6.24279463]
[1757012442328,4.413592,4284.8,4284.5,7.56199463]
[1757012442487,4.413592,4284.8,4284.5,10.53156097]
[1757012443188,4.413592,4284.8,4284.5,14.50956097]
[1757012443716,1e-08,4284.8,4284.7,6.12588568]
[1757012443928,1e-08,4284.8,4284.7,7.44508568]
[1757012445889,1e-08,4284.8,4284.7,6.21898568]
[1757012446216,1e-08,4284.8,4284.7,6.96263035]
[1757012446382,1e-08,4284.8,4284.7,3.65123035]
[1757012446584,1e-08,4284.8,4284.5,3.035653]
[1757012446585,2.02650001,4284.8,4284.5,0.70165837]
[1757012446822,2.02650001,4284.8,4284.7,2.33388568]
[1757012447012,3.03920001,4284.8,4284.5,0.70165837]
[1757012447188,2.57760001,4284.8,4284.5,0.70165837]
[1757012447400,0.4616,4284.7,4284.5,0.70165837]
[1757012447597,0.3055,4284.6,4284.5,0.70165837]
[1757012448100,4.7441,4284.6,4284.5,3.70165837]
[1757012448292,4.2825,4284.6,4284.5,3.035653]
[1757012448616,4.2825,4284.6,4284.5,6.035653]
[1757012449008,4.2825,4284.6,4284.5,3.70165837]
[1757012449404,4.2825,4284.6,4284.5,6.035653]
[1757012449920,1.72100001,4284.8,4284.6,3.0]
[1757012450122,3.977,4284.6,4284.5,7.18402816]
[1757012450322,1.72100001,4284.8,4284.7,2.33388568]
[1757012450625,5.69800001,4284.8,4284.7,2.33388568]
[1757012450925,5.69700001,4284.8,4284.7,6.65308568]
[1757012451125,5.69700001,4284.8,4284.7,7.70565706]
[1757012451514,1.72100001,4284.8,4284.7,7.70565706]
[1757012451715,0.026,4285.8,4285.7,2.33334111]
[1757012451914,5.722,4285.8,4285.7,2.33334111]
[1757012452428,5.722,4285.8,4285.7,3.03499292]
[1757012452601,7.0402,4285.8,4285.7,0.70165181]
[1757012454211,6.0275,4285.8,4285.7,0.70165181]
[1757012454929,6.4891,4285.8,4285.7,0.70165181]
[1757012455230,7.0402,4285.8,4285.7,0.70165181]
[1757012455611,6.4891,4285.8,4285.7,3.03499292]
[1757012455809,6.0275,4285.8,4285.7,0.70165181]
[1757012456633,1.8628,4285.8,4285.7,3.34639292]
[1757012456801,0.026,4285.8,4285.7,7.92217575]
[1757012457001,0.026,4285.8,4285.7,8.03897575]
[1757012458227,0.026,4285.8,4285.7,7.03117575]
[1757012458409,0.026,4285.8,4285.7,8.03897575]
[1757012458831,0.026,4285.8,4285.7,8.83097575]
[1757012460437,0.001,4286.3,4286.2,3.12506891]
[1757012460602,0.001,4286.3,4286.2,8.41630756]
[1757012460803,0.001,4286.3,4286.2,9.82897688]
[1757012461217,0.4616,4288.1,4286.7,6.12479679]
[1757012461218,1e-08,4286.8,4286.7,6.12479679]
[1757012461622,1e-08,4286.8,4286.7,6.55299679]
[1757012461816,2.192,4287.5,4286.7,4.436]
[1757012461817,1.64200001,4287.5,4286.7,4.436]
[1757012462018,0.4616,4287.4,4286.7,0.81815654]
[1757012462624,0.1168,4287.3,4286.9,2.33264334]
[1757012462840,0.1168,4287.3,4287.2,2.33252472]
[1757012463220,0.4223,4287.3,4287.2,2.33252472]
[1757012463626,0.1168,4287.3,4287.2,3.03396654]
[1757012464018,1.64200001,4287.5,4287.2,3.03396654]
[1757012464019,1.64200001,4287.5,4287.4,2.33241591]
[1757012464535,2.06430001,4287.5,4287.4,2.33241591]
[1757012464727,1.64200001,4287.5,4287.4,2.33241591]
[1757012465810,1.94750001,4287.5,4287.4,2.33241591]
[1757012469137,1.94750001,4287.5,4287.4,3.03376589]
[1757012469541,1.64200001,4287.5,4287.4,3.32676589]
[1757012469917,1.93710001,4287.5,4287.4,3.03376589]
[1757012470153,2.05390001,4287.5,4287.4,3.03376589]
[1757012472054,1.75880001,4287.5,4287.4,3.03376589]
[1757012472255,1.75880001,4287.5,4287.4,3.86339369]
[1757012473146,1.75880001,4287.5,4287.4,4.87719369]
[1757012473355,1.75880001,4287.5,4287.4,3.86339369]
[1757012473526,1.75880001,4287.5,4287.4,3.03376589]
[1757012473726,2.05390001,4287.5,4287.4,3.03376589]
[1757012473927,1.75880001,4287.5,4287.4,3.32676589]
[1757012474556,0.1168,4287.5,4287.4,6.32676589]
[1757012474747,0.025,4287.8,4287.7,2.33225272]
[1757012475056,0.025,4287.8,4287.7,3.83276698]
[1757012475225,0.025,4287.8,4287.7,4.12576698]
[1757012475425,0.025,4287.8,4287.7,5.13956698]
[1757012476961,0.025,4287.8,4287.7,8.25636698]
[1757012479435,0.3201,4287.8,4287.7,6.83276698]
[1757012479642,0.025,4287.8,4287.7,7.12576698]
[1757012479860,0.025,4287.8,4287.7,8.25636698]
[1757012480861,0.7684,4287.8,4287.7,6.83276698]
[1757012481159,0.7684,4287.8,4287.7,5.33225272]
[1757012481337,0.3201,4287.8,4287.7,5.33225272]
[1757012481535,0.7684,4287.8,4287.4,0.70134998]
[1757012481858,0.1168,4287.6,4287.4,0.70134998]
[1757012482053,0.1168,4287.6,4287.5,2.33236151]
[1757012482269,0.7434,4287.5,4287.4,6.03374997]
[1757012483740,0.2951,4287.5,4287.4,6.03374997]
[1757012484462,0.2951,4287.5,4287.4,3.70134998]
[1757012484652,0.2951,4287.5,4287.4,6.03376589]
[1757012485379,0.8802,4287.5,4287.4,0.70134998]
[1757012485539,1.3285,4287.5,4286.6,0.004]
[1757012485739,3.973,4287.4,4286.6,0.004]
[1757012486141,0.2951,4286.7,4286.6,0.004]
[1757012486340,4.34689679,4286.7,4286.6,0.004]
[1757012486542,3.0475,4286.7,4286.6,0.004]
[1757012486770,5.9901,4286.7,4286.6,0.004]
[1757012487639,6.4384,4286.7,4286.6,0.004]
[1757012487843,7.0235,4286.7,4286.6,0.004]
[1757012488174,9.35629679,4286.7,4286.6,0.004]
[1757012489390,2.33301448,4286.3,4286.2,0.004]
[1757012489540,9.18976448,4286.3,4286.2,0.004]
[1757012489739,10.32026448,4286.3,4286.2,0.004]
[1757012490164,10.64151448,4286.3,4286.2,0.004]
[1757012490363,14.84851448,4286.3,4286.2,0.004]
[1757012490571,14.84851448,4286.3,4285.8,0.029]
[1757012490777,2.33323222,4285.9,4285.8,0.029]
[1757012490976,13.40823222,4285.9,4285.8,0.029]
[1757012491286,14.73673222,4285.9,4285.8,0.029]
[1757012492270,20.38280322,4285.9,4285.8,0.029]
[1757012492487,2.33377675,4284.9,4284.6,0.004]
[1757012492790,8.03377675,4284.9,4284.6,0.004]
[1757012492990,9.36227675,4284.9,4284.6,0.004]
[1757012493286,12.36227675,4284.9,4284.6,0.004]
[1757012495574,12.47907675,4284.9,4284.6,0.004]
[1757012495782,12.47807675,4284.9,4284.6,0.004]
[1757012495963,12.48207675,4284.9,4284.6,0.004]
[1757012496751,8.49907675,4284.9,4284.6,0.004]
[1757012496962,12.48207675,4284.9,4284.6,0.004]
[1757012498894,11.89697675,4284.9,4284.6,0.004]
[1757012499705,2.1319,4284.9,4284.6,0.004]
[1757012499984,1.8368,4284.9,4284.8,1.3924]
[1757012500189,5.8178,4284.9,4284.8,1.3924]
[1757012500373,5.8178,4284.9,4284.8,0.025]
[1757012500374,8.44097675,4284.9,4284.8,0.025]
[1757012500770,9.48697675,4284.9,4284.8,0.025]
[1757012501177,12.48697675,4284.9,4284.8,0.025]
[1757012504769,7.45997675,4284.9,4284.8,0.025]
[1757012505170,11.43997675,4284.9,4284.8,0.025]
[1757012505367,7.17057675,4284.9,4284.8,0.025]
[1757012505585,11.15057675,4284.9,4284.8,0.3161]
[1757012505787,11.15057675,4284.9,4284.8,0.025]
[1757012506775,4.8368,4284.9,4284.8,0.025]
[1757012506975,8.14957675,4284.9,4284.8,0.3161]
[1757012507599,1.8368,4284.9,4284.8,1.3924]
[1757012507769,5.8168,4284.9,4284.8,1.53204]
[1757012508289,5.8168,4284.9,4284.8,1.3924]
[1757012508494,1.8368,4284.9,4284.8,1.3924]
[1757012508681,5.8158,4284.9,4284.8,1.3924]
[1757012509192,8.14957675,4284.9,4284.8,0.025]
[1757012509398,8.43897675,4284.9,4284.8,0.025]
[1757012509693,8.91177675,4284.9,4284.8,0.025]
[1757012509899,12.48497675,4284.9,4284.8,0.025]
[1757012511000,2.33388568,4284.7,4284.6,1e-08]
[1757012511167,29.96981355,4284.7,4284.6,1e-08]
[1757012511370,27.63971199,4284.7,4284.6,1e-08]
[1757012511569,27.63971199,4284.7,4284.2,0.004]
[1757012511570,2.33410358,4284.3,4284.2,1e-08]
[1757012511887,22.01526658,4284.3,4284.2,1e-08]
[1757012512089,11.55830358,4284.3,4284.2,1e-08]
[1757012512274,15.90304358,4284.3,4284.2,1e-08]
[1757012512476,11.55830358,4284.3,4284.2,1e-08]
[1757012512697,16.03142458,4284.3,4284.2,1e-08]
[1757012513109,12.05142458,4284.3,4284.2,1e-08]
[1757012513268,3.12626704,4284.0,4283.9,1e-08]
[1757012513610,35.82532035,4284.0,4283.9,1e-08]
[1757012513810,36.86349235,4284.0,4283.9,1e-08]
[1757012514309,40.53149235,4284.0,4283.9,1e-08]
[1757012515107,27.16265235,4284.0,4283.9,1e-08]
[1757012515303,28.95165235,4284.0,4283.9,1e-08]
[1757012515694,28.63898404,4284.0,4283.9,1e-08]
[1757012516207,2.33432152,4283.9,4283.8,1e-08]
[1757012516403,26.30231283,4283.9,4283.8,1e-08]
[1757012516606,24.59181683,4283.9,4283.8,1e-08]
[1757012516900,22.51849483,4283.9,4283.8,1e-08]
[1757012517705,22.81523227,4283.9,4283.8,1e-08]
[1757012517887,26.79323227,4283.9,4283.8,1e-08]
[1757012518289,2.33519464,4282.3,4282.1,1.0763]
[1757012518491,8.15004823,4282.2,4282.1,0.6083]
[1757012518699,5.8148,4282.2,4282.1,1.3674]
[1757012519028,1.8378,4282.2,4282.1,1.3674]
[1757012519192,5.8148,4282.2,4282.1,1.50414]
[1757012519777,1.8378,4282.2,4282.1,1.50414]
[1757012520080,5.8148,4282.2,4282.1,1.50414]
[1757012520291,1.8378,4282.2,4282.1,3.83944277]
[1757012520490,5.8158,4282.2,4282.1,3.83944277]
[1757012521106,5.8158,4282.2,4282.1,1.50414]
[1757012521408,5.8158,4282.2,4282.1,1.3674]
[1757012521780,5.8158,4282.2,4282.1,0.8994]
[1757012521998,5.8158,4282.2,4282.1,0.2911]
[1757012522198,5.8158,4282.2,4282.1,1.3674]
[1757012522400,5.8158,4282.2,4282.1,3.70270277]
[1757012523391,5.8158,4282.2,4282.1,4.37674275]
[1757012524018,1.8378,4282.2,4282.1,4.37674275]
[1757012524233,5.8168,4282.2,4282.1,1.3674]
[1757012525015,5.8168,4282.2,4282.1,3.70270277]
[1757012525386,1.8378,4282.2,4282.1,3.70270277]
[1757012525700,3.633,4282.2,4282.1,3.70270277]
[1757012525907,5.708,4282.2,4282.1,3.70270277]
[1757012526109,1.721,4282.2,4282.1,4.31819301]
[1757012526310,5.708,4282.2,4282.1,4.31819301]
[1757012526713,5.8248,4282.2,4282.1,4.31819301]
[1757012527103,5.8248,4282.2,4282.1,1.3674]
[1757012527698,5.8248,4282.2,4281.7,0.6083]
[1757012527905,0.1168,4281.7,4281.6,0.007]
[1757012528122,4.1048,4281.7,4281.6,0.007]
[1757012528296,4.1048,4281.7,4281.6,0.2981]
[1757012528497,6.44032093,4281.7,4281.6,0.007]
[1757012529016,4.1048,4281.7,4281.6,0.007]
[1757012529224,4.1048,4281.7,4281.6,0.2979]
[1757012529820,0.1168,4281.7,4281.6,0.9028]
[1757012530009,4.1048,4281.7,4281.6,1.3581]
[1757012530519,4.1048,4281.7,4281.6,0.2979]
[1757012530717,4.1048,4281.7,4281.6,0.007]
[1757012530894,0.1168,4281.7,4281.6,0.2979]
[1757012531095,7.101,4282.2,4281.6,1.3581]
[1757012531290,0.1168,4281.7,4281.6,1.3581]
[1757012531496,4.1058,4281.7,4281.6,1.3581]
[1757012531723,0.1168,4281.7,4281.6,3.82978548]
[1757012531908,3.99,4281.7,4281.6,3.94658548]
[1757012532092,3.3765,4281.7,4281.6,3.94658548]
[1757012532694,3.3765,4281.7,4281.6,3.82978548]
[1757012533826,3.4933,4281.7,4281.6,0.88931]
[1757012534032,3.4933,4281.7,4281.4,0.003]
[1757012534033,6.73812093,4281.7,4281.4,0.003]
[1757012534222,2.3357937,4281.2,4281.1,0.004]
[1757012534528,12.4377937,4281.2,4281.1,0.004]
[1757012534727,16.7502937,4281.2,4281.1,0.004]
[1757012534901,17.8354937,4281.2,4281.1,0.004]
[1757012535720,17.8354937,4281.2,4279.8,0.6329]
[1757012535721,2.33606554,4280.8,4279.8,0.028]
[1757012535928,2.33633942,4280.2,4278.8,0.025]
[1757012536115,3.0,4280.4,4278.8,0.025]
[1757012536116,1.722,4280.1,4278.8,0.025]
[1757012536316,2.33660702,4279.8,4278.4,0.3803]
[1757012536521,4.018,4279.7,4278.4,0.9852]
[1757012536715,4.018,4279.6,4278.5,0.6049]
[1757012536940,2.3328,4280.1,4278.5,0.6049]
[1757012536941,4.66920959,4280.1,4279.5,0.2909]
[1757012537131,4.018,4280.0,4279.5,0.2909]
[1757012537427,0.2985,4279.6,4277.8,2.36264205]
[1757012537638,0.2985,4279.6,4278.3,0.6049]
[1757012537639,4.027,4279.5,4278.3,0.6049]
[1757012537840,4.027,4279.5,4278.4,2.33732236]
[1757012538152,4.027,4279.5,4277.8,0.025]
[1757012538153,0.2985,4278.5,4277.8,0.025]
[1757012538448,1.722,4278.4,4278.3,2.33737699]
[1757012538633,3.588,4278.4,4278.3,6.39757699]
[1757012538926,5.791,4278.4,4278.3,6.68847699]
[1757012540002,5.79,4278.4,4278.3,7.48047699]
[1757012540202,4.068,4278.4,4278.3,8.46227062]
[1757012541034,1.722,4279.6,4278.8,0.792]
[1757012541220,1.722,4279.6,4279.5,2.62762157]
[1757012541422,5.399,4279.6,4279.5,0.2909]
[1757012541613,5.399,4279.6,4279.5,0.7462]
[1757012541944,5.399,4279.6,4279.1,0.4553]
[1757012542134,5.399,4279.6,4279.2,0.4553]
[1757012542511,5.399,4279.6,4279.3,2.33683079]
[1757012542712,5.399,4279.6,4279.2,0.4553]
[1757012542925,5.399,4279.6,4279.0,0.70276126]
[1757012543114,5.399,4279.6,4279.1,2.33693585]
[1757012543313,5.399,4279.6,4279.2,0.30396971]
[1757012543635,5.399,4279.6,4279.3,2.33682309]
[1757012543837,1.722,4279.6,4279.5,2.62762157]
[1757012544037,5.793,4279.6,4279.5,3.08292157]
[1757012544237,5.9098,4279.6,4279.5,0.2909]
[1757012544420,5.9098,4279.6,4279.2,0.30396971]
[1757012544620,5.9098,4279.6,4279.3,2.33679542]
[1757012544829,5.9098,4279.6,4279.5,0.2909]
[1757012545008,5.9098,4279.6,4279.5,3.08292157]
[1757012545357,1.722,4279.6,4279.5,6.80462157]
[1757012545511,5.791,4279.6,4279.5,6.80462157]
[1757012546426,1.722,4279.6,4279.5,6.80462157]
[1757012546628,5.791,4279.6,4279.5,8.45173944]
[1757012547031,0.1168,4280.3,4280.2,6.12833942]
[1757012547209,4.095,4280.8,4280.7,2.33606653]
[1757012547410,4.095,4280.8,4280.7,3.08226653]
[1757012547632,4.095,4280.8,4280.7,4.22900754]
[1757012547848,4.095,4280.8,4280.7,4.93140682]
[1757012548208,0.025,4280.8,4280.7,8.72340682]
[1757012550146,4.096,4280.8,4280.7,6.87120682]
[1757012550353,4.097,4280.8,4280.7,6.03846581]
[1757012551749,5.4807,4280.8,4279.5,1.39984093]
[1757012552048,0.1168,4280.6,4279.8,3.03919385]
[1757012552258,0.1168,4279.9,4279.8,2.33655604]
[1757012552547,4.1878,4279.9,4279.8,2.33655604]
[1757012553350,4.1878,4279.9,4279.8,2.62745604]
[1757012553565,1.722,4280.5,4280.4,2.33623025]
[1757012553857,5.794,4280.5,4280.4,2.62713025]
[1757012554216,5.794,4280.5,4280.4,3.08243025]
[1757012555473,5.794,4280.5,4280.2,2.45310537]
[1757012555474,6.0925,4280.5,4280.2,0.1168]
[1757012555622,0.1168,4280.3,4279.8,3.56667536]
[1757012555823,0.1168,4280.0,4279.9,0.6605925]
[1757012556045,4.1888,4280.0,4279.9,0.6605925]
[1757012556245,4.4873,4280.0,4279.8,2.33653856]
[1757012556457,4.4873,4280.0,4279.6,2.33662446]
[1757012556630,4.9813,4280.0,4279.5,0.7026839]
[1757012556964,0.1168,4279.7,4279.5,2.33668256]
[1757012557128,0.1168,4279.7,4279.6,2.33666697]
[1757012557447,5.9108,4279.7,4279.6,2.33666697]
[1757012558651,1.722,4280.4,4280.3,2.33628483]
[1757012558849,5.793,4280.4,4280.3,2.33628483]
[1757012559055,5.793,4280.4,4280.3,2.8492992]
[1757012561139,5.793,4280.4,4280.3,0.51301437]
[1757012561325,5.793,4280.4,4279.9,0.1168]
[1757012561526,5.793,4280.4,4280.2,0.70255719]
[1757012561856,5.793,4280.4,4280.1,2.33637321]
[1757012562025,5.793,4280.4,4280.1,3.03895015]
[1757012562355,0.3,4280.2,4279.5,0.51288145]
[1757012562563,0.1168,4279.7,4279.6,0.02336666]
[1757012562850,0.1168,4280.0,4279.9,2.33650318]
[1757012563176,4.1918,4280.0,4279.9,0.58332731]
[1757012563376,4.1918,4280.0,4279.9,2.33650318]
[1757012565333,4.1918,4280.0,4279.9,2.62450318]
[1757012565534,4.1918,4280.0,4279.9,2.33650318]
[1757012565734,4.075,4280.0,4279.9,2.62450318]
[1757012565939,1.722,4280.4,4280.3,2.33628483]
[1757012566240,1.722,4280.4,4280.3,3.08178483]
[1757012566241,5.793,4280.4,4280.3,3.08178483]
[1757012569969,0.001,4280.6,4280.3,3.08178483]
[1757012569970,0.001,4280.6,4280.5,2.33617568]
[1757012570150,4.069,4280.6,4280.5,2.33617568]
[1757012570470,4.069,4280.6,4280.5,6.66437568]
[1757012570642,4.069,4280.6,4280.5,9.72428365]
[1757012571482,4.069,4280.6,4280.5,9.27428365]
[1757012572763,0.001,4280.6,4280.5,9.97668951]
[1757012575587,4.063,4281.0,4280.5,9.97668951]
[1757012575588,0.001,4281.3,4281.2,6.1277937]
[1757012575886,0.001,4281.3,4281.2,6.74057307]
[1757012576080,0.001,4281.3,4281.2,7.14537307]
[1757012576281,0.001,4281.3,4281.2,7.60287307]
[1757012577175,0.001,4281.3,4281.2,8.30516383]
[1757012577781,0.001,4281.3,4281.2,8.88786383]
[1757012577983,0.001,4281.3,4281.2,12.94386383]
[1757012578365,0.001,4281.3,4281.2,28.13206993]
[1757012580585,0.022,4281.8,4281.7,3.12752093]
[1757012580884,0.022,4281.8,4281.7,6.44027302]
[1757012581072,0.022,4281.8,4281.7,5.76507302]
[1757012582358,0.022,4281.8,4281.7,6.84507302]
[1757012582685,4.057,4283.2,4282.7,2.33497559]
[1757012583183,4.057,4283.2,4282.7,2.45177559]
[1757012583384,4.057,4283.2,4282.7,3.92053668]
[1757012583587,4.057,4283.2,4282.7,7.37803668]
[1757012584587,4.057,4283.2,4282.7,8.17003668]
[1757012585089,1.722,4283.3,4282.7,8.17003668]
[1757012585090,5.776,4283.3,4282.7,8.17003668]
[1757012585261,1.722,4283.3,4282.7,8.17003668]
[1757012585456,1.722,4283.3,4282.7,8.75273668]
[1757012585678,1.722,4283.3,4282.7,8.17003668]
[1757012585881,0.322,4282.8,4282.7,6.15385433]
[1757012586083,0.9241,4282.8,4282.7,5.45177559]
[1757012586589,1.5136,4282.8,4282.5,3.0]
[1757012586762,1.5136,4282.8,4282.2,0.1168]
[1757012586763,5.1268,4282.7,4282.6,2.33503012]
[1757012586965,5.4268,4282.7,4282.6,2.33503012]
[1757012587191,5.4268,4282.7,4282.2,0.1168]
[1757012587494,1.0748,4282.6,4282.5,2.33508464]
[1757012587996,1.3748,4282.6,4282.5,2.33508464]
[1757012588164,1.3748,4282.6,4282.0,0.1168]
[1757012588488,0.1168,4282.4,4281.8,0.81899213]
[1757012588658,0.1168,4282.1,4281.5,0.1168]
[1757012588862,4.051,4282.0,4281.9,2.33541184]
[1757012589090,4.9517,4282.0,4281.9,2.33541184]
[1757012589999,5.3933,4282.0,4281.5,0.1168]
[1757012590292,4.8009,4282.0,4281.9,2.33541184]
[1757012590789,4.051,4282.0,4281.9,2.33541184]
[1757012591366,4.3593,4282.0,4281.9,2.33541184]
[1757012592172,4.051,4282.0,4281.9,2.33541184]
[1757012592374,0.023,4282.8,4282.2,0.792]
[1757012592577,0.001,4283.7,4282.1,2.33530277]
[1757012592578,0.001,4283.7,4283.2,2.33470302]
[1757012592899,0.001,4283.7,4283.2,6.43130302]
[1757012593064,0.001,4283.7,4283.2,11.48410302]
[1757012593267,0.001,4283.7,4283.2,12.84479455]
[1757012593466,0.001,4283.7,4283.2,7.69619455]
[1757012593784,0.001,4283.7,4283.2,5.42828658]
[1757012594512,0.001,4283.7,4283.2,6.73368658]
[1757012595204,0.001,4283.7,4283.2,6.16208658]
[1757012595795,0.001,4283.7,4283.2,7.52568658]
[1757012595994,0.001,4283.7,4283.2,6.95408658]
[1757012596202,0.001,4283.7,4283.2,7.55437302]
[1757012596403,0.001,4283.7,4283.2,8.28817302]
[1757012596601,0.001,4283.7,4283.2,8.85977302]
[1757012596785,0.001,4283.7,4283.2,12.90877302]
[1757012598511,0.4416,4284.7,4284.3,0.792]
[1757012598512,4.047,4284.7,4284.3,0.792]
[1757012598722,4.047,4284.7,4284.4,5.3340491]
[1757012598879,0.3083,4284.5,4284.4,3.0]
[1757012599208,0.3083,4284.5,4284.4,2.33401531]
[1757012599575,4.047,4284.7,4284.6,2.33394015]
[1757012599812,4.047,4284.7,4284.6,3.49325995]
[1757012600709,3.597,4284.7,4284.6,3.49325995]
[1757012600910,3.9053,4284.7,4284.6,3.49325995]
[1757012601213,3.9053,4284.7,4284.6,2.33394015]
[1757012601424,3.597,4284.7,4284.6,2.63854015]
[1757012601622,1.721,4285.1,4284.7,5.33388568]
[1757012601906,1.721,4285.1,4284.7,6.55508568]
[1757012602081,1.721,4285.1,4284.7,9.12759365]
[1757012602488,4.043,4285.6,4284.7,9.81599365]
[1757012602911,1e-08,4284.8,4284.7,9.81599365]
[1757012603923,1e-08,4284.8,4284.7,8.51059365]
[1757012604079,1e-08,4284.8,4284.7,10.59028568]
[1757012604482,1e-08,4284.8,4284.7,11.01948568]
[1757012606581,1e-08,4284.8,4284.7,11.59108568]
[1757012606805,1e-08,4284.8,4284.7,12.29267677]
[1757012607315,0.00100001,4284.8,4284.7,12.29267677]
[1757012607518,0.051,4285.8,4285.7,3.12534111]
[1757012607806,0.051,4285.8,4285.7,6.12534111]
[1757012608109,0.051,4285.8,4285.7,6.35994111]
[1757012610509,0.3593,4285.8,4285.7,6.35994111]
[1757012610699,1.3933,4285.8,4285.7,2.33334111]
[1757012611985,0.9517,4285.8,4285.7,2.33334111]
[1757012612308,0.3593,4285.8,4285.7,2.33334111]
[1757012612523,0.9517,4285.8,4285.6,2.33338349]
[1757012612705,0.3593,4285.8,4285.7,2.33334111]
[1757012613215,0.3593,4285.8,4285.6,2.33337848]
[1757012613403,1.034,4285.7,4285.1,1.1513]
[1757012613789,1.034,4285.7,4285.6,2.33339555]
[1757012613988,1.3423,4285.7,4285.6,2.33339555]
[1757012614596,0.9007,4285.7,4285.6,2.33339555]
[1757012617030,0.051,4285.8,4285.7,3.12534111]
[1757012617188,0.051,4285.8,4285.7,6.55454111]
[1757012617524,0.051,4285.8,4285.7,6.85914111]
[1757012617819,0.051,4285.8,4285.7,7.52427937]
[1757012618926,0.051,4285.8,4285.7,6.95267937]
[1757012619124,0.051,4285.8,4285.7,9.22058734]
[1757012619327,0.001,4286.4,4286.3,21.31322058]
[1757012619548,1e-08,4286.8,4286.7,2.33279679]
[1757012619727,1e-08,4286.8,4286.7,10.51616426]
[1757012619902,1e-08,4286.8,4286.7,12.41827016]
[1757012620294,1e-08,4286.8,4286.7,7.81217016]
[1757012620598,1e-08,4286.8,4286.7,11.96997016]
[1757012620808,1e-08,4286.8,4286.7,12.711955]
[1757012622127,1e-08,4286.8,4286.7,8.670955]
[1757012622428,1e-08,4286.8,4286.7,12.712955]
[1757012623192,1e-08,4286.8,4286.7,11.695355]
[1757012623799,1e-08,4286.8,4286.7,7.358755]
[1757012624007,0.30590001,4286.8,4286.7,9.58310269]